fUSD/lending_fUSD_20250804
["ID","MTS","AMOUNT","RATE_DAILY","PERIOD"]
[377252461,1754306743680,-529.61,0.00044383,120]
[377252462,1754306743704,-881.05,0.00044383,120]
[377252463,1754306743728,-1614.49,0.00044383,120]
[377252464,1754306743753,-516.88,0.00044383,120]
[377252465,1754306743779,-2402.74,0.00044383,120]
[377252466,1754306743804,-818.41,0.00044383,120]
[377252467,1754306743829,-2514.11,0.00044383,120]
[377252468,1754306743854,-1271.29,0.00044383,120]
[377252469,1754306743878,-1057.37,0.00044383,120]
[377252470,1754306743902,-989.85,0.00044383,120]
[377252471,1754306743926,-752.7,0.00044383,120]
[377252472,1754306743951,-2810.6,0.00044383,120]
[377252473,1754306743974,-673.08,0.00044383,120]
[377252474,1754306743999,-10154.25,0.00044383,120]
[377252475,1754306744023,-661.82,0.00044383,120]
[377252476,1754306744047,-1401.89,0.00044383,120]
[377252477,1754306744070,-165.6328006,0.00044383,120]
[377252478,1754306744093,-401.43,0.00044383,120]
[377252479,1754306744117,-4684.38,0.00044383,120]
[377252480,1754306744141,-1622.45,0.00044383,120]
[377252481,1754306744165,-593.04,0.00044383,120]
[377252482,1754306744188,-795.56,0.00044383,120]
[377252483,1754306744211,-401.82271025,0.00044383,120]
[377252484,1754306744233,-441.3,0.00044383,120]
[377252485,1754306744258,-786.09,0.00044383,120]
[377252486,1754306744291,-714.04,0.00044383,120]
[377252487,1754306744316,-880.05,0.00044383,120]
[377252488,1754306744340,-682.64,0.00044383,120]
[377252489,1754306744369,-1189.47,0.00044383,120]
[377252490,1754306744396,-7670.26,0.00044383,120]
[377252491,1754306744438,-1747.63,0.00044383,120]
[377252492,1754306744463,-1622.8,0.00044383,120]
[377252493,1754306744486,-1029.18,0.00044383,120]
[377252494,1754306744512,-521.98,0.00044383,120]
[377252495,1754306744535,-537.9,0.00044383,120]
[377252496,1754306744563,-3435.98,0.00044383,120]
[377252497,1754306744587,-4478.29307,0.00044465,14]
[377252498,1754306744612,-328.34168662,0.00044551,30]
[377252499,1754306744637,-500.0,0.00044552,120]
[377252500,1754306744661,-500.0,0.00044552,120]
[377252501,1754306744685,-500.0,0.00044552,120]
[377252502,1754306744710,-500.0,0.00044552,120]
[377252503,1754306744736,-500.0,0.00044552,120]
[377252504,1754306744761,-500.0,0.00044552,120]
[377252505,1754306744786,-500.0,0.00044552,120]
[377252506,1754306744811,-500.0,0.00044552,120]
[377252507,1754306744836,-500.0,0.00044552,120]
[377252508,1754306744861,-500.0,0.00044552,120]
[377252509,1754306744886,-500.0,0.00044552,120]
[377252510,1754306744912,-500.0,0.00044552,120]
[377252511,1754306744936,-500.0,0.00044552,120]
[377252512,1754306744963,-500.0,0.00044552,120]
[377252513,1754306744988,-500.0,0.00044552,120]
[377252514,1754306745014,-500.0,0.00044552,120]
[377252515,1754306745040,-500.0,0.00044552,120]
[377252516,1754306745065,-500.0,0.00044552,120]
[377252517,1754306745090,-500.0,0.00044552,120]
[377252518,1754306745113,-500.0,0.00044552,120]
[377252519,1754306745137,-500.0,0.00044552,120]
[377252520,1754306745163,-500.0,0.00044552,120]
[377252521,1754306745187,-500.0,0.00044552,120]
[377252522,1754306745212,-500.0,0.00044552,120]
[377252523,1754306745238,-500.0,0.00044552,120]
[377252524,1754306745269,-500.0,0.00044552,120]
[377252525,1754306745294,-500.0,0.00044552,120]
[377252526,1754306745318,-500.0,0.00044552,120]
[377252527,1754306745342,-500.0,0.00044552,120]
[377252528,1754306745574,-500.0,0.00044552,120]
[377252529,1754306745598,-500.0,0.00044552,120]
[377252530,1754306745623,-500.0,0.00044552,120]
[377252531,1754306745649,-500.0,0.00044552,120]
[377252532,1754306745673,-500.0,0.00044552,120]
[377252533,1754306745697,-500.0,0.00044552,120]
[377252534,1754306745722,-500.0,0.00044552,120]
[377252535,1754306745748,-500.0,0.00044552,120]
[377252536,1754306745773,-500.0,0.00044552,120]
[377252537,1754306745799,-500.0,0.00044552,120]
[377252538,1754306745823,-500.0,0.00044552,120]
[377252539,1754306745848,-500.0,0.00044552,120]
[377252540,1754306745872,-500.0,0.00044552,120]
[377252541,1754306745897,-500.0,0.00044552,120]
[377252542,1754306745921,-500.0,0.00044552,120]
[377252543,1754306745946,-500.0,0.00044552,120]
[377252544,1754306745969,-500.0,0.00044552,120]
[377252545,1754306745994,-500.0,0.00044552,120]
[377252546,1754306746020,-500.0,0.00044552,120]
[377252547,1754306746044,-500.0,0.00044552,120]
[377252548,1754306746068,-500.0,0.00044552,120]
[377252549,1754306746092,-500.0,0.00044552,120]
[377252550,1754306746115,-500.0,0.00044552,120]
[377252551,1754306746141,-500.0,0.00044552,120]
[377252552,1754306746164,-500.0,0.00044552,120]
[377252553,1754306746188,-500.0,0.00044552,120]
[377252554,1754306746211,-500.0,0.00044552,120]
[377252555,1754306746236,-500.0,0.00044552,120]
[377252556,1754306746260,-500.0,0.00044552,120]
[377252557,1754306746284,-500.0,0.00044552,120]
[377252558,1754306746308,-500.0,0.00044552,120]
[377252559,1754306746333,-500.0,0.00044552,120]
[377252560,1754306746357,-500.0,0.00044552,120]
[377252561,1754306746381,-500.0,0.00044552,120]
[377252562,1754306746406,-500.0,0.00044552,120]
[377252563,1754306746430,-500.0,0.00044552,120]
[377252564,1754306746455,-500.0,0.00044552,120]
[377252565,1754306746482,-500.0,0.00044552,120]
[377252566,1754306746506,-500.0,0.00044552,120]
[377252567,1754306746530,-500.0,0.00044552,120]
[377252568,1754306746558,-500.0,0.00044552,120]
[377252569,1754306746583,-500.0,0.00044552,120]
[377252570,1754306746609,-500.0,0.00044552,120]
[377252571,1754306746641,-500.0,0.00044552,120]
[377252572,1754306746667,-500.0,0.00044552,120]
[377252573,1754306746692,-500.0,0.00044552,120]
[377252574,1754306746717,-500.0,0.00044552,120]
[377252575,1754306746743,-500.0,0.00044552,120]
[377252576,1754306746768,-500.0,0.00044552,120]
[377252577,1754306746793,-500.0,0.00044552,120]
[377252578,1754306746818,-500.0,0.00044552,120]
[377252579,1754306746843,-500.0,0.00044552,120]
[377252580,1754306746867,-500.0,0.00044552,120]
[377252581,1754306746890,-500.0,0.00044552,120]
[377252582,1754306746915,-500.0,0.00044552,120]
[377252583,1754306746939,-500.0,0.00044552,120]
[377252584,1754306746962,-500.0,0.00044552,120]
[377252585,1754306746987,-500.0,0.00044552,120]
[377252586,1754306747012,-500.0,0.00044552,120]
[377252587,1754306747037,-500.0,0.00044552,120]
[377252588,1754306747061,-500.0,0.00044552,120]
[377252589,1754306747085,-500.0,0.00044552,120]
[377252590,1754306747108,-500.0,0.00044552,120]
[377252591,1754306747131,-500.0,0.00044552,120]
[377252592,1754306747155,-500.0,0.00044552,120]
[377252593,1754306747179,-500.0,0.00044552,120]
[377252594,1754306747203,-500.0,0.00044552,120]
[377252595,1754306747226,-500.0,0.00044552,120]
[377252596,1754306747251,-500.0,0.00044552,120]
[377252597,1754306747275,-500.0,0.00044552,120]
[377252598,1754306747300,-500.0,0.00044552,120]
[377252599,1754306747324,-500.0,0.00044552,120]
[377252600,1754306747348,-500.0,0.00044552,120]
[377252601,1754306747373,-500.0,0.00044552,120]
[377252602,1754306747398,-500.0,0.00044552,120]
[377252603,1754306747423,-500.0,0.00044552,120]
[377252604,1754306747447,-500.0,0.00044552,120]
[377252605,1754306747472,-500.0,0.00044552,120]
[377252606,1754306747497,-500.0,0.00044552,120]
[377252607,1754306747521,-500.0,0.00044552,120]
[377252608,1754306747545,-500.0,0.00044552,120]
[377252609,1754306747572,-500.0,0.00044552,120]
[377252610,1754306747597,-500.0,0.00044552,120]
[377252611,1754306747622,-500.0,0.00044552,120]
[377252612,1754306747647,-500.0,0.00044552,120]
[377252613,1754306747673,-500.0,0.00044552,120]
[377252614,1754306747698,-500.0,0.00044552,120]
[377252615,1754306747725,-936.0,0.00044552,120]
[377252616,1754306747751,-500.0,0.00044552,120]
[377252617,1754306747778,-500.0,0.00044552,120]
[377252618,1754306747804,-500.0,0.00044552,120]
[377252619,1754306747829,-500.0,0.00044552,120]
[377252620,1754306747854,-500.0,0.00044552,120]
[377252621,1754306747881,-500.0,0.00044552,120]
[377252622,1754306747906,-500.0,0.00044552,120]
[377252623,1754306747932,-500.0,0.00044552,120]
[377252624,1754306747957,-500.0,0.00044552,120]
[377252625,1754306747981,-500.0,0.00044552,120]
[377252626,1754306748007,-500.0,0.00044552,120]
[377252627,1754306748031,-500.0,0.00044552,120]
[377252628,1754306748058,-500.0,0.00044552,120]
[377252629,1754306748083,-539.0,0.00044552,120]
[377252630,1754306748110,-500.0,0.00044552,120]
[377252631,1754306748136,-500.0,0.00044552,120]
[377252632,1754306748161,-500.0,0.00044552,120]
[377252633,1754306748188,-500.0,0.00044552,120]
[377252634,1754306748213,-500.0,0.00044552,120]
[377252635,1754306748239,-500.0,0.00044552,120]
[377252636,1754306748263,-500.0,0.00044552,120]
[377252637,1754306748288,-500.0,0.00044552,120]
[377252638,1754306748313,-500.0,0.00044552,120]
[377252639,1754306748337,-500.0,0.00044552,120]
[377252640,1754306748362,-500.0,0.00044552,120]
[377252641,1754306748387,-500.0,0.00044552,120]
[377252642,1754306748412,-500.0,0.00044552,120]
[377252643,1754306748658,-500.0,0.00044552,120]
[377252644,1754306748685,-500.0,0.00044552,120]
[377252645,1754306748711,-500.0,0.00044552,120]
[377252646,1754306748739,-500.0,0.00044552,120]
[377252647,1754306748765,-500.0,0.00044552,120]
[377252648,1754306748792,-500.0,0.00044552,120]
[377252649,1754306748821,-500.0,0.00044552,120]
[377252650,1754306748847,-500.0,0.00044552,120]
[377252651,1754306748872,-500.0,0.00044552,120]
[377252652,1754306748897,-500.0,0.00044552,120]
[377252653,1754306748922,-500.0,0.00044552,120]
[377252654,1754306748947,-500.0,0.00044552,120]
[377252655,1754306748972,-500.0,0.00044552,120]
[377252656,1754306748997,-500.0,0.00044552,120]
[377252657,1754306749022,-500.0,0.00044552,120]
[377252658,1754306749047,-500.0,0.00044552,120]
[377252659,1754306749070,-500.0,0.00044552,120]
[377252660,1754306749101,-500.0,0.00044552,120]
[377252661,1754306749127,-500.0,0.00044552,120]
[377252662,1754306749152,-500.0,0.00044552,120]
[377252663,1754306749178,-500.0,0.00044552,120]
[377252664,1754306749203,-500.0,0.00044552,120]
[377252665,1754306749227,-500.0,0.00044552,120]
[377252666,1754306749252,-500.0,0.00044552,120]
[377252667,1754306749277,-500.0,0.00044552,120]
[377252668,1754306749302,-500.0,0.00044552,120]
[377252669,1754306749326,-500.0,0.00044552,120]
[377252670,1754306749351,-500.0,0.00044552,120]
[377252671,1754306749376,-500.0,0.00044552,120]
[377252672,1754306749401,-500.0,0.00044552,120]
[377252673,1754306749425,-500.0,0.00044552,120]
[377252674,1754306749449,-500.0,0.00044552,120]
[377252675,1754306749474,-500.0,0.00044552,120]
[377252676,1754306749503,-500.0,0.00044552,120]
[377252677,1754306749528,-500.0,0.00044552,120]
[377252678,1754306749554,-500.0,0.00044552,120]
[377252679,1754306749582,-500.0,0.00044552,120]
[377252680,1754306749606,-500.0,0.00044552,120]
[377252681,1754306749630,-500.0,0.00044552,120]
[377252682,1754306749655,-500.0,0.00044552,120]
[377252683,1754306749680,-500.0,0.00044552,120]
[377252684,1754306749704,-500.0,0.00044552,120]
[377252685,1754306749728,-500.0,0.00044552,120]
[377252686,1754306749754,-500.0,0.00044552,120]
[377252687,1754306749778,-500.0,0.00044552,120]
[377252688,1754306749803,-500.0,0.00044552,120]
[377252689,1754306749827,-500.0,0.00044552,120]
[377252690,1754306749851,-500.0,0.00044552,120]
[377252691,1754306749875,-500.0,0.00044552,120]
[377252692,1754306749899,-500.0,0.00044552,120]
[377252693,1754306749923,-500.0,0.00044552,120]
[377252694,1754306749947,-500.0,0.00044552,120]
[377252695,1754306749971,-500.0,0.00044552,120]
[377252696,1754306749996,-500.0,0.00044552,120]
[377252697,1754306750019,-500.0,0.00044552,120]
[377252698,1754306750043,-500.0,0.00044552,120]
[377252699,1754306750077,-508.0,0.00044552,120]
[377252700,1754306750104,-500.0,0.00044552,120]
[377252701,1754306750130,-500.0,0.00044552,120]
[377252702,1754306750156,-500.0,0.00044552,120]
[377252703,1754306750182,-500.0,0.00044552,120]
[377252704,1754306750209,-500.0,0.00044552,120]
[377252705,1754306750237,-500.0,0.00044552,120]
[377252706,1754306750264,-587.0,0.00044552,120]
[377252707,1754306750290,-3392.4,0.00044656,120]
[377252708,1754306750315,-426.78,0.00044656,120]
[377252709,1754306750339,-788.14,0.00044656,120]
[377252710,1754306750364,-400.0,0.00044656,120]
[377252711,1754306750389,-400.0,0.00044656,120]
[377252712,1754306750414,-400.0,0.00044656,120]
[377252713,1754306750440,-683.96,0.00044656,120]
[377252714,1754306750465,-1055.91,0.00044656,120]
[377252715,1754306750490,-268.09,0.00044656,120]
[377252716,1754306750516,-833.88,0.00044656,120]
[377252717,1754306750541,-400.0,0.00044656,120]
[377252718,1754306750569,-400.0,0.00044656,120]
[377252719,1754306750595,-545.06254676,0.00044656,120]
[377252720,1754306750625,-952.92,0.00044656,120]
[377252721,1754306750653,-318.76,0.00044656,120]
[377252722,1754306750679,-833.35,0.00044656,120]
[377252723,1754306750704,-400.0,0.00044656,120]
[377252724,1754306750730,-400.0,0.00044656,120]
[377252725,1754306750756,-400.0,0.00044656,120]
[377252726,1754306750782,-400.0,0.00044656,120]
[377252727,1754306750807,-983.93,0.00044656,120]
[377252728,1754306750834,-1440.86,0.00044656,120]
[377252729,1754306750859,-400.0,0.00044656,120]
[377252730,1754306750886,-823.62,0.00044656,120]
[377252731,1754306750911,-625.49825274,0.00044657,120]
[377252732,1754306750936,-929.78717477,0.00044657,120]
[377252733,1754306750962,-419.4803567,0.00044657,120]
[377252734,1754306750986,-781.47166177,0.00044657,120]
[377252735,1754306751013,-1261.75,0.00044657,120]
[377252736,1754306751041,-769.79620522,0.00044657,120]
[377252737,1754306751070,-892.22,0.00044657,120]
[377252738,1754306751099,-945.02851765,0.00044657,120]
[377252739,1754306751125,-753.52581751,0.00044657,120]
[377252740,1754306751150,-867.88556591,0.00044657,120]
[377252741,1754306751181,-786.02760349,0.00044657,120]
[377252742,1754306751207,-470.96572349,0.00044657,120]
[377252743,1754306751233,-524.33366943,0.00044657,120]
[377252744,1754306751260,-1082.19,0.00044657,120]
[377252745,1754306751286,-949.14791056,0.00044657,120]
[377252746,1754306751312,-542.30636328,0.00044657,120]
[377252747,1754306751337,-938.91195147,0.00044657,120]
[377252748,1754306751363,-837.29069089,0.00044657,120]
[377252749,1754306751389,-867.39344161,0.00044657,120]
[377252750,1754306751416,-803.79900509,0.00044657,120]
[377252751,1754306751442,-781.56945244,0.00044657,120]
[377252752,1754306751467,-781.29560867,0.00044657,120]
[377252753,1754306751494,-1067.16714099,0.00044657,120]
[377252754,1754306751520,-532.28,0.00044657,120]
[377252755,1754306751547,-909.31630841,0.00044657,120]
[377252756,1754306751577,-626.79298844,0.00044657,120]
[377252757,1754306751604,-600.37381252,0.00044657,120]
[377252758,1754306751631,-797.81219896,0.00044657,30]
[377252759,1754306752082,-1075.61450394,0.00044657,120]
[377252760,1754306752106,-799.26,0.00044657,120]
[377252761,1754306752128,-824.03580272,0.00044657,120]
[377252762,1754306752153,-9848.75000959,0.00044657,120]
[377252763,1754306752179,-1442.29514907,0.00044657,120]
[377252764,1754306752205,-556.16,0.00044657,120]
[377252765,1754306752230,-529.77220188,0.00044657,120]
[377252766,1754306752257,-881.15239412,0.00044657,120]
[377252767,1754306752282,-1614.5791924,0.00044657,120]
[377252768,1754306752308,-516.960862,0.00044657,120]
[377252769,1754306752334,-2402.89,0.00044657,120]
[377252770,1754306752359,-818.52285697,0.00044657,120]
[377252771,1754306752387,-2514.14,0.00044657,120]
[377252772,1754306752413,-1271.47575351,0.00044657,120]
[377252773,1754306752438,-1057.49538666,0.00044657,120]
[377252774,1754306752465,-989.9334287,0.00044657,120]
[377252775,1754306752494,-2810.8,0.00044657,120]
[377252776,1754306752520,-752.79221338,0.00044657,120]
[377252777,1754306752546,-673.15373533,0.00044657,120]
[377252778,1754306752577,-10154.28156747,0.00044657,120]
[377252779,1754306752603,-662.05387301,0.00044657,120]
[377252780,1754306752630,-1401.98130793,0.00044657,120]
[377252781,1754306752656,-401.49172738,0.00044657,120]
[377252782,1754306752683,-1622.60534453,0.00044657,120]
[377252783,1754306752710,-4684.60288764,0.00044657,120]
[377252784,1754306752736,-593.14795746,0.00044657,120]
[377252785,1754306752761,-795.6604896,0.00044657,120]
[377252786,1754306752788,-441.33008355,0.00044657,120]
[377252787,1754306752816,-786.18,0.00044657,120]
[377252788,1754306752841,-714.07209568,0.00044657,120]
[377252789,1754306752866,-880.10991024,0.00044657,120]
[377252790,1754306752892,-682.877339,0.00044657,120]
[377252791,1754306752918,-1189.60507155,0.00044657,120]
[377252792,1754306752944,-7670.29461555,0.00044657,120]
[377252793,1754306752968,-1747.81,0.00044657,120]
[377252794,1754306752994,-1622.88,0.00044657,120]
[377252795,1754306753020,-1029.30208856,0.00044657,120]
[377252796,1754306753045,-522.12828169,0.00044657,120]
[377252797,1754306753070,-537.92906187,0.00044657,120]
[377252798,1754306753094,-3436.04244798,0.00044657,120]
[377252799,1754306753121,-3392.4,0.0004493,120]
[377252800,1754306753148,-426.78,0.0004493,120]
[377252801,1754306753173,-788.14,0.0004493,120]
[377252802,1754306753197,-400.0,0.0004493,120]
[377252803,1754306753223,-400.0,0.0004493,120]
[377252804,1754306753250,-400.0,0.0004493,120]
[377252805,1754306753275,-683.96,0.0004493,120]
[377252806,1754306753303,-1055.91,0.0004493,120]
[377252807,1754306753332,-833.88,0.0004493,120]
[377252808,1754306753359,-198.07605062,0.0004493,120]
[377252809,1754306753386,-272.61,0.0004493,120]
[377252810,1754306753411,-952.92,0.0004493,120]
[377252811,1754306753435,-833.35,0.0004493,120]
[377252812,1754306753460,-252.69268941,0.0004493,120]
[377252813,1754306753486,-400.0,0.0004493,120]
[377252814,1754306753512,-400.0,0.0004493,120]
[377252815,1754306753538,-407.97,0.0004493,120]
[377252816,1754306753565,-983.93,0.0004493,120]
[377252817,1754306753591,-1440.86,0.0004493,120]
[377252818,1754306753615,-400.0,0.0004493,120]
[377252819,1754306753641,-152.0,0.00045,120]
[377252820,1754306753666,-160.0,0.00045,90]
[377252821,1754306753693,-338.55,0.000452,14]
[377252822,1754306753720,-3392.4,0.00045204,120]
[377252823,1754306753747,-426.78,0.00045204,120]
[377252824,1754306753774,-788.14,0.00045204,120]
[377252825,1754306753801,-287.82780276,0.00045204,120]
[377252826,1754306753826,-400.0,0.00045204,120]
[377252827,1754306753851,-400.0,0.00045204,120]
[377252828,1754306753878,-683.96,0.00045204,120]
[377252829,1754306753903,-1055.91,0.00045204,120]
[377252830,1754306753929,-833.88,0.00045204,120]
[377252831,1754306753954,-952.92,0.00045204,120]
[377252832,1754306753979,-833.35,0.00045204,120]
[377252833,1754306754006,-400.0,0.00045204,120]
[377252834,1754306754031,-400.0,0.00045204,120]
[377252835,1754306754057,-983.93,0.00045204,120]
[377252836,1754306754083,-1440.86,0.00045204,120]
[377252837,1754306754107,-400.0,0.00045204,120]
[377252838,1754306754132,-500.0,0.00045205,120]
[377252839,1754306754157,-500.0,0.00045205,120]
[377252840,1754306754182,-500.0,0.00045205,120]
[377252841,1754306754206,-500.0,0.00045205,120]
[377252842,1754306754231,-500.0,0.00045205,120]
[377252843,1754306754257,-500.0,0.00045205,120]
[377252844,1754306754283,-262.77108162,0.00045205,120]
[377252845,1754306754310,-3392.4,0.00045478,120]
[377252846,1754306754335,-426.78,0.00045478,120]
[377252847,1754306754360,-788.14,0.00045478,120]
[377252848,1754306754384,-400.0,0.00045478,120]
[377252849,1754306754409,-543.19,0.00045478,120]
[377252850,1754306754434,-683.96,0.00045478,120]
[377252851,1754306754459,-1055.91,0.00045478,120]
[377252852,1754306754484,-833.88,0.00045478,120]
[377252853,1754306754511,-952.92,0.00045478,120]
[377252854,1754306754535,-833.35,0.00045478,120]
[377252855,1754306754564,-400.0,0.00045478,120]
[377252856,1754306754592,-400.0,0.00045478,120]
[377252857,1754306754618,-983.93,0.00045478,120]
[377252858,1754306754646,-1440.86,0.00045478,120]
[377252859,1754306754672,-359.13758507,0.00045478,120]
[377252860,1754306754700,-3392.4,0.00045752,120]
[377252861,1754306754726,-426.78,0.00045752,120]
[377252862,1754306754753,-788.14,0.00045752,120]
[377252863,1754306754780,-400.0,0.00045752,120]
[377252864,1754306754806,-683.96,0.00045752,120]
[377252865,1754306754833,-1055.91,0.00045752,120]
[377252866,1754306754858,-833.88,0.00045752,120]
[377252867,1754306754884,-952.92,0.00045752,120]
[377252868,1754306754910,-833.35,0.00045752,120]
[377252869,1754306754936,-400.0,0.00045752,120]
[377252870,1754306754960,-400.0,0.00045752,120]
[377252871,1754306754985,-983.93,0.00045752,120]
[377252872,1754306755011,-1440.86,0.00045752,120]
[377252873,1754306755040,-50000.0,0.00046,46]
[377252874,1754306755275,-152.0,0.00046,120]
[377252875,1754306755301,-1000.0,0.00046,120]
[377252876,1754306755332,-3392.4,0.00046026,120]
[377252877,1754306755357,-426.78,0.00046026,120]
[377252878,1754306755385,-788.14,0.00046026,120]
[377252879,1754306755410,-400.0,0.00046026,120]
[377252880,1754306755435,-683.96,0.00046026,120]
[377252881,1754306755460,-1055.91,0.00046026,120]
[377252882,1754306755485,-833.88,0.00046026,120]
[377252883,1754306755521,-952.92,0.00046026,120]
[377252884,1754306755546,-833.35,0.00046026,120]
[377252885,1754306755576,-400.0,0.00046026,120]
[377252886,1754306755601,-198.8238172,0.00046026,120]
[377252887,1754306755628,-983.93,0.00046026,120]
[377252888,1754306755655,-1440.86,0.00046026,120]
[377252889,1754306755683,-3392.4,0.000463,120]
[377252890,1754306755710,-426.78,0.000463,120]
[377252891,1754306755735,-788.14,0.000463,120]
[377252892,1754306755761,-472.77030553,0.000463,120]
[377252893,1754306755788,-683.96,0.000463,120]
[377252894,1754306755816,-1055.91,0.000463,120]
[377252895,1754306755842,-833.88,0.000463,120]
[377252896,1754306755867,-952.92,0.000463,120]
[377252897,1754306755893,-833.35,0.000463,120]
[377252898,1754306755918,-400.0,0.000463,120]
[377252899,1754306755947,-983.93,0.000463,120]
[377252900,1754306755974,-1440.86,0.000463,120]
[377252901,1754306755999,-500.0,0.00046301,120]
[377252902,1754306756024,-4478.29306,0.00046465,14]
[377252903,1754306756048,-150.0,0.000465,102]
[377252904,1754306756074,-3392.4,0.00046574,120]
[377252905,1754306756098,-426.78,0.00046574,120]
[377252906,1754306756122,-788.14,0.00046574,120]
[377252907,1754306756146,-683.96,0.00046574,120]
[377252908,1754306756172,-1055.91,0.00046574,120]
[377252909,1754306756195,-833.88,0.00046574,120]
[377252910,1754306756221,-952.92,0.00046574,120]
[377252911,1754306756246,-833.35,0.00046574,120]
[377252912,1754306756273,-365.26967033,0.00046574,120]
[377252913,1754306756298,-983.93,0.00046574,120]
[377252914,1754306756323,-1440.86,0.00046574,120]
[377252915,1754306756347,-500.0,0.00046575,120]
[377252916,1754306756378,-338.55,0.000468,14]
[377252917,1754306756405,-888.0,0.00046847,120]
[377252918,1754306756432,-888.0,0.00046847,120]
[377252919,1754306756458,-782.26,0.00046848,120]
[377252920,1754306756484,-3392.4,0.00046848,120]
[377252921,1754306756510,-426.78,0.00046848,120]
[377252922,1754306756534,-788.14,0.00046848,120]
[377252923,1754306756569,-683.96,0.00046848,120]
[377252924,1754306756602,-1055.91,0.00046848,120]
[377252925,1754306756632,-833.88,0.00046848,120]
[377252926,1754306756657,-952.92,0.00046848,120]
[377252927,1754306756686,-833.35,0.00046848,120]
[377252928,1754306756711,-983.93,0.00046848,120]
[377252929,1754306756738,-1440.86,0.00046848,120]
[377252930,1754306756764,-250.74527969,0.00046849,120]
[377252931,1754306756790,-2807.53463428,0.00046999,60]
[377252932,1754306756816,-152.0,0.00047,120]
[377252933,1754306756843,-888.0,0.000471,30]
[377252934,1754306756871,-888.0,0.00047121,120]
[377252935,1754306756898,-888.0,0.00047121,120]
[377252936,1754306756923,-782.26,0.00047122,120]
[377252937,1754306756949,-3392.4,0.00047122,120]
[377252938,1754306756974,-426.78,0.00047122,120]
[377252939,1754306756999,-788.14,0.00047122,120]
[377252940,1754306757024,-683.96,0.00047122,120]
[377252941,1754306757050,-1055.91,0.00047122,120]
[377252942,1754306757075,-833.88,0.00047122,120]
[377252943,1754306757100,-952.92,0.00047122,120]
[377252944,1754306757125,-833.35,0.00047122,120]
[377252945,1754306757150,-983.93,0.00047122,120]
[377252946,1754306757176,-1440.86,0.00047122,120]
[377252947,1754306757204,-888.0,0.00047227,120]
[377252948,1754306757232,-888.0,0.00047348,120]
[377252949,1754306757260,-888.0,0.00047395,120]
[377252950,1754306757286,-888.0,0.00047395,120]
[377252951,1754306757312,-782.26,0.00047396,120]
[377252952,1754306757338,-3392.4,0.00047396,120]
[377252953,1754306757363,-426.78,0.00047396,120]
[377252954,1754306757388,-788.14,0.00047396,120]
[377252955,1754306757413,-683.96,0.00047396,120]
[377252956,1754306757440,-1055.91,0.00047396,120]
[377252957,1754306757466,-833.88,0.00047396,120]
[377252958,1754306757491,-952.92,0.00047396,120]
[377252959,1754306757518,-833.35,0.00047396,120]
[377252960,1754306757546,-983.93,0.00047396,120]